[Event "Rapide Futuroscope"]
[Site "Futuroscope, France"]
[Date "2019.12.01"]
[Round "6.5"]
[White "Navrotescu, Andreea-Cristiana"]
[Black "Fernandez, Leon"]
[Result "1-0"]
[TimeControl "15' + 3''"]
[WhiteElo "2241"]
[BlackElo "1959"]

1. d4 {[%clk 00:15:02]} Nf6 {[%clk 00:15:05]} 2. c4 {[%clk 00:15:02]} g6 {[%clk
00:15:05]} 3. Nc3 {[%clk 00:15:02]} d5 {[%clk 00:15:05]} 4. Bf4 {[%clk
00:15:02]} Bg7 {[%clk 00:15:05]} 5. e3 {[%clk 00:15:02]} O-O {[%clk 00:15:05]}
6. Nf3 {[%clk 00:15:02]} c6 {[%clk 00:15:05]} 7. Rc1 {[%clk 00:15:02]} Bf5
{[%clk 00:15:05]} 8. h3 {[%clk 00:15:02]} Be6 {[%clk 00:15:05]} 9. Ng5 {[%clk
00:15:02]} Qd7 {[%clk 00:15:05]} 10. Nxe6 {[%clk 00:15:02]} Qxe6 {[%clk
00:15:05]} 11. Qb3 {[%clk 00:15:02]} b6 {[%clk 00:15:05]} 12. cxd5 {[%clk
00:15:02]} cxd5 {[%clk 00:15:05]} 13. Nb5 {[%clk 00:15:02]} Na6 {[%clk
00:15:05]} 14. Bd3 {[%clk 00:15:02]} Qd7 {[%clk 00:15:05]} 15. O-O {[%clk
00:15:02]} Rfc8 {[%clk 00:15:05]} 16. Qa3 {[%clk 00:15:02]} Qb7 {[%clk
00:15:05]} 17. Nd6 {[%clk 00:15:02]} exd6 {[%clk 00:15:05]} 18. Bxa6 {[%clk
00:15:02]} Qd7 {[%clk 00:15:05]} 19. Bxc8 {[%clk 00:15:02]} Rxc8 {[%clk
00:15:05]} 20. Qxd6 {[%clk 00:15:02]} Rxc1 {[%clk 00:15:05]} 1-0

[Event "Rapide Futuroscope"]
[Site "Futuroscope, France"]
[Date "2019.12.01"]
[Round "6.2"]
[White "Saada, Julien"]
[Black "Demuth, Adrien"]
[Result "0-1"]
[TimeControl "15' + 3''"]
[WhiteElo "2256"]
[BlackElo "2502"]

1. d4 {[%clk 00:15:04]} {[%emt 00:00:02]} f5 {[%clk 00:15:04]} {[%emt
00:00:03]} 2. Nf3 {[%clk 00:15:04]} {[%emt 00:00:02]} Nf6 {[%clk 00:15:06]}
{[%emt 00:00:02]} 3. g3 {[%clk 00:15:01]} {[%emt 00:00:05]} g6 {[%clk
00:15:07]} {[%emt 00:00:02]} 4. Bg2 {[%clk 00:15:02]} {[%emt 00:00:03]} Bg7
{[%clk 00:15:09]} {[%emt 00:00:01]} 5. O-O {[%clk 00:15:01]} {[%emt 00:00:03]}
O-O {[%clk 00:15:10]} {[%emt 00:00:03]} 6. c4 {[%clk 00:14:27]} {[%emt
00:00:36]} d6 {[%clk 00:15:11]} {[%emt 00:00:02]} 7. Nc3 {[%clk 00:14:20]}
{[%emt 00:00:10]} c6 {[%clk 00:15:12]} {[%emt 00:00:02]} 8. Qc2 {[%clk
00:13:36]} {[%emt 00:00:46]} Na6 {[%clk 00:15:00]} {[%emt 00:00:15]} 9. Rb1
{[%clk 00:12:44]} {[%emt 00:00:56]} Qe8 {[%clk 00:13:20]} {[%emt 00:01:43]} 10.
d5 {[%clk 00:12:23]} {[%emt 00:00:23]} e5 {[%clk 00:11:09]} {[%emt 00:02:15]}
11. dxe6 {[%clk 00:11:53]} {[%emt 00:00:34]} Bxe6 {[%clk 00:11:10]} {[%emt
00:00:02]} 12. b3 {[%clk 00:11:43]} {[%emt 00:00:12]} Qe7 {[%clk 00:10:54]}
{[%emt 00:00:19]} 13. Ba3 {[%clk 00:11:05]} {[%emt 00:00:41]} Nc5 {[%clk
00:10:25]} {[%emt 00:00:32]} 14. Ng5 {[%clk 00:10:32]} {[%emt 00:00:35]} Bd7
{[%clk 00:10:15]} {[%emt 00:00:14]} 15. Rbd1 {[%clk 00:09:26]} {[%emt
00:01:08]} Rad8 {[%clk 00:09:10]} {[%emt 00:01:09]} 16. Na4 {[%clk 00:06:49]}
{[%emt 00:02:40]} h6 {[%clk 00:06:50]} {[%emt 00:02:23]} 17. Nxc5 {[%clk
00:06:36]} {[%emt 00:00:15]} dxc5 {[%clk 00:06:47]} {[%emt 00:00:07]} 18. Nh3
{[%clk 00:06:32]} {[%emt 00:00:07]} g5 {[%clk 00:06:17]} {[%emt 00:00:33]} 19.
Kh1 {[%clk 00:05:31]} {[%emt 00:01:04]} Bc8 {[%clk 00:05:13]} {[%emt 00:01:07]}
20. e3 {[%clk 00:05:07]} {[%emt 00:00:28]} Ne4 {[%clk 00:04:57]} {[%emt
00:00:20]} 21. f3 {[%clk 00:04:10]} {[%emt 00:01:00]} Nc3 {[%clk 00:04:33]}
{[%emt 00:00:26]} 22. Rde1 {[%clk 00:04:05]} {[%emt 00:00:08]} b5 {[%clk
00:04:32]} {[%emt 00:00:04]} 23. f4 {[%clk 00:03:30]} {[%emt 00:00:38]} g4
{[%clk 00:02:57]} {[%emt 00:01:38]} 24. Nf2 {[%clk 00:03:31]} {[%emt 00:00:01]}
Qd6 {[%clk 00:02:11]} {[%emt 00:00:49]} 25. Bc1 {[%clk 00:02:41]} {[%emt
00:00:54]} bxc4 {[%clk 00:01:47]} {[%emt 00:00:28]} 26. bxc4 {[%clk 00:02:40]}
{[%emt 00:00:03]} Be6 {[%clk 00:01:44]} {[%emt 00:00:06]} 27. Bb2 {[%clk
00:01:48]} {[%emt 00:00:55]} Qd2 {[%clk 00:01:36]} {[%emt 00:00:11]} 28. Rc1
{[%clk 00:01:33]} {[%emt 00:00:18]} Nxa2 {[%clk 00:01:19]} {[%emt 00:00:20]} 29.
Bxg7 {[%clk 00:00:59]} {[%emt 00:00:37]} Kxg7 {[%clk 00:01:21]} {[%emt
00:00:01]} 30. Rfd1 {[%clk 00:00:24]} {[%emt 00:00:38]} Qxc2 {[%clk 00:01:15]}
{[%emt 00:00:09]} 31. Rxc2 {[%clk 00:00:25]} {[%emt 00:00:01]} Rxd1+ {[%clk
00:01:06]} {[%emt 00:00:13]} 32. Nxd1 {[%clk 00:00:27]} Rd8 {[%clk 00:01:07]}
{[%emt 00:00:01]} 33. Nf2 {[%clk 00:00:20]} {[%emt 00:00:10]} Nb4 {[%clk
00:01:09]} {[%emt 00:00:02]} 34. Rc1 {[%clk 00:00:21]} {[%emt 00:00:01]} Rd2
{[%clk 00:01:07]} {[%emt 00:00:05]} 35. Nd1 {[%clk 00:00:17]} {[%emt 00:00:07]}
Nd3 {[%clk 00:01:08]} {[%emt 00:00:02]} 0-1

[Event "Rapide Futuroscope"]
[Site "Futuroscope, France"]
[Date "2019.12.01"]
[Round "6.3"]
[White "LAGARDE, Maxime"]
[Black "Rodriguez Rodriguez, Antonio"]
[Result "1-0"]
[TimeControl "15' + 3''"]
[WhiteTitle "GM"]
[WhiteFideId "662399"]
[WhiteElo "2661"]
[BlackElo "2114"]

1. e4 {[%clk 00:15:04]} {[%emt 00:00:01]} d6 {[%clk 00:14:57]} {[%emt
00:00:09]} 2. d4 {[%clk 00:15:05]} {[%emt 00:00:02]} Nf6 {[%clk 00:14:56]}
{[%emt 00:00:05]} 3. Nc3 {[%clk 00:15:07]} {[%emt 00:00:01]} Nc6 {[%clk
00:14:54]} {[%emt 00:00:06]} 4. d5 {[%clk 00:14:49]} {[%emt 00:00:20]} Nb8
{[%clk 00:14:52]} {[%emt 00:00:05]} 5. Bc4 {[%clk 00:14:47]} {[%emt 00:00:05]}
a6 {[%clk 00:14:31]} {[%emt 00:00:24]} 6. a4 {[%clk 00:14:32]} {[%emt
00:00:19]} g6 {[%clk 00:12:44]} {[%emt 00:01:49]} 7. Nge2 {[%clk 00:14:33]}
{[%emt 00:00:02]} Bg7 {[%clk 00:12:38]} {[%emt 00:00:09]} 8. O-O {[%clk
00:14:34]} {[%emt 00:00:03]} O-O {[%clk 00:12:19]} {[%emt 00:00:21]} 9. h3
{[%clk 00:14:35]} {[%emt 00:00:02]} a5 {[%clk 00:11:52]} {[%emt 00:00:30]} 10.
Re1 {[%clk 00:14:31]} {[%emt 00:00:07]} Na6 {[%clk 00:11:38]} {[%emt 00:00:16]}
11. Nd4 {[%clk 00:14:29]} {[%emt 00:00:06]} Nc5 {[%clk 00:11:10]} {[%emt
00:00:30]} 12. Bg5 {[%clk 00:14:28]} {[%emt 00:00:04]} h6 {[%clk 00:11:00]}
{[%emt 00:00:13]} 13. Bf4 {[%clk 00:14:11]} {[%emt 00:00:19]} Nfd7 {[%clk
00:10:05]} {[%emt 00:00:58]} 14. Qd2 {[%clk 00:13:48]} {[%emt 00:00:27]} Ne5
{[%clk 00:08:20]} {[%emt 00:01:48]} 15. Bf1 {[%clk 00:13:30]} {[%emt 00:00:21]}
Kh7 {[%clk 00:06:53]} {[%emt 00:01:30]} 16. Bh2 {[%clk 00:13:09]} {[%emt
00:00:23]} e6 {[%clk 00:03:12]} {[%emt 00:03:44]} 17. f4 {[%clk 00:12:53]}
{[%emt 00:00:20]} exd5 {[%clk 00:02:27]} {[%emt 00:00:49]} 18. fxe5 {[%clk
00:11:52]} {[%emt 00:01:04]} dxe5 {[%clk 00:02:29]} {[%emt 00:00:02]} 19. Nf3
{[%clk 00:11:54]} d4 {[%clk 00:02:31]} {[%emt 00:00:01]} 20. Nd1 {[%clk
00:10:33]} {[%emt 00:01:23]} Qe7 {[%clk 00:02:21]} {[%emt 00:00:12]} 21. Nf2
{[%clk 00:10:30]} {[%emt 00:00:07]} Bd7 {[%clk 00:02:18]} {[%emt 00:00:06]} 22.
Nd3 {[%clk 00:10:12]} {[%emt 00:00:21]} f6 {[%clk 00:02:10]} {[%emt 00:00:11]}
23. Nxc5 {[%clk 00:09:52]} {[%emt 00:00:23]} Qxc5 {[%clk 00:02:11]} {[%emt
00:00:02]} 24. Bd3 {[%clk 00:09:54]} {[%emt 00:00:02]} h5 {[%clk 00:01:37]}
{[%emt 00:00:37]} 25. Rf1 {[%clk 00:09:40]} {[%emt 00:00:17]} Bh6 {[%clk
00:01:38]} {[%emt 00:00:02]} 26. Qe2 {[%clk 00:09:42]} {[%emt 00:00:02]} g5
{[%clk 00:00:43]} {[%emt 00:00:57]} 27. Kh1 {[%clk 00:09:22]} {[%emt 00:00:23]}
Rg8 {[%clk 00:00:45]} 28. Rad1 {[%clk 00:05:53]} {[%emt 00:03:33]} g4 {[%clk
00:00:46]} {[%emt 00:00:02]} 29. Nh4 {[%clk 00:05:05]} {[%emt 00:00:51]} g3
{[%clk 00:00:48]} {[%emt 00:00:01]} 30. Bg1 {[%clk 00:04:31]} {[%emt 00:00:37]}
Rg5 {[%clk 00:00:31]} {[%emt 00:00:20]} 31. Rxf6 {[%clk 00:04:26]} {[%emt
00:00:08]} Rag8 {[%clk 00:00:25]} {[%emt 00:00:09]} 32. Nf5 {[%clk 00:04:06]}
{[%emt 00:00:23]} Bxf5 {[%clk 00:00:18]} {[%emt 00:00:11]} 33. exf5 {[%clk
00:04:07]} {[%emt 00:00:02]} Qe7 {[%clk 00:00:05]} {[%emt 00:00:16]} 34. Re6
{[%clk 00:04:06]} {[%emt 00:00:03]} Qf8 {[%clk 00:00:04]} {[%emt 00:00:04]} 35.
Qxe5 {[%clk 00:04:00]} {[%emt 00:00:09]} Bg7 {[%clk 00:00:06]} {[%emt
00:00:02]} 36. f6+ {[%clk 00:03:59]} {[%emt 00:00:04]} 1-0

[ePGN "0.1;DGT LiveChess/2.2.5"]

[Event "Rapide Futuroscope"]
[Site "Futuroscope, France"]
[Date "2019.12.01"]
[Round "7.1"]
[White "Demuth, Adrien"]
[Black "Edouard, Romain"]
[Result "1/2-1/2"]
[TimeControl "15' + 3''"]
[WhiteElo "2502"]
[BlackElo "2635"]

1. Nf3 {[%clk 00:15:03]} {[%emt 00:00:03]} c5 {[%clk 00:15:01]} {[%emt
00:00:05]} 2. e3 {[%clk 00:14:55]} {[%emt 00:00:11]} g6 {[%clk 00:14:52]}
{[%emt 00:00:12]} 3. d4 {[%clk 00:14:49]} {[%emt 00:00:10]} Bg7 {[%clk
00:14:53]} {[%emt 00:00:02]} 4. dxc5 {[%clk 00:14:50]} {[%emt 00:00:02]} Qa5+
{[%clk 00:14:41]} {[%emt 00:00:17]} 5. Nbd2 {[%clk 00:14:34]} {[%emt 00:00:17]}
Nf6 {[%clk 00:14:32]} {[%emt 00:00:12]} 6. a3 {[%clk 00:14:30]} {[%emt
00:00:07]} Qxc5 {[%clk 00:14:31]} {[%emt 00:00:04]} 7. b4 {[%clk 00:14:32]}
{[%emt 00:00:02]} Qc7 {[%clk 00:14:25]} {[%emt 00:00:09]} 8. Bb2 {[%clk
00:14:33]} {[%emt 00:00:01]} O-O {[%clk 00:14:14]} {[%emt 00:00:14]} 9. c4
{[%clk 00:14:25]} {[%emt 00:00:11]} d6 {[%clk 00:14:02]} {[%emt 00:00:15]} 10.
Be2 {[%clk 00:14:22]} {[%emt 00:00:06]} b6 {[%clk 00:14:00]} {[%emt 00:00:05]}
11. O-O {[%clk 00:14:15]} {[%emt 00:00:10]} Bb7 {[%emt 00:00:44]} 1/2-1/2

[Event "Rapide Futuroscope"]
[Site "Futuroscope, France"]
[Date "2019.12.01"]
[Round "7.5"]
[White "Malassagne, Raphael"]
[Black "Dieu, Bruno"]
[Result "1-0"]
[TimeControl "15' + 3''"]
[WhiteElo "2254"]
[BlackElo "2223"]

1. d4 {[%clk 00:15:02]} e6 {[%clk 00:15:05]} 2. Bf4 {[%clk 00:15:02]} d5 {[%clk
00:15:05]} 3. e3 {[%clk 00:15:02]} c5 {[%clk 00:15:05]} 4. c3 {[%clk 00:15:02]}
Nc6 {[%clk 00:15:05]} 5. Nd2 {[%clk 00:15:02]} Bd6 {[%clk 00:15:05]} 6. Bg3
{[%clk 00:15:02]} Nge7 {[%clk 00:15:05]} 7. Ngf3 {[%clk 00:15:02]} Nf5 {[%clk
00:15:05]} 8. Bxd6 {[%clk 00:15:02]} Qxd6 {[%clk 00:15:05]} 9. Bd3 {[%clk
00:15:02]} c4 {[%clk 00:15:05]} 10. Bc2 {[%clk 00:15:02]} O-O {[%clk 00:15:05]}
11. e4 {[%clk 00:15:02]} dxe4 {[%clk 00:15:05]} 12. Nxe4 {[%clk 00:13:52]}
{[%emt 27:38:20]} Qd5 {[%clk 00:13:42]} {[%emt 00:00:12]} 13. O-O {[%clk
00:13:35]} {[%emt 00:00:20]} b6 {[%clk 00:13:32]} {[%emt 00:00:14]} 14. Re1
{[%clk 00:13:09]} {[%emt 00:00:28]} Bb7 {[%clk 00:13:33]} {[%emt 00:00:02]} 15.
Nfd2 {[%clk 00:12:51]} {[%emt 00:00:21]} Nce7 {[%clk 00:12:58]} {[%emt
00:00:38]} 16. Qg4 {[%clk 00:12:10]} {[%emt 00:00:43]} Ng6 {[%clk 00:12:47]}
{[%emt 00:00:14]} 17. Rad1 {[%clk 00:11:26]} {[%emt 00:00:47]} Nh6 {[%clk
00:12:27]} {[%emt 00:00:23]} 18. Qh3 {[%clk 00:11:07]} {[%emt 00:00:21]} Rae8
{[%clk 00:11:24]} {[%emt 00:01:06]} 19. f3 {[%clk 00:07:51]} {[%emt 00:03:19]}
f5 {[%clk 00:07:41]} {[%emt 00:03:46]} 20. Ng5 {[%clk 00:07:41]} {[%emt
00:00:12]} e5 {[%clk 00:07:33]} {[%emt 00:00:12]} 21. Nxc4 {[%clk 00:06:57]}
{[%emt 00:00:47]} exd4 {[%clk 00:07:12]} {[%emt 00:00:23]} 22. Rxe8 {[%clk
00:06:24]} {[%emt 00:00:37]} Rxe8 {[%emt 00:00:02]} 23. Rxd4 {[%clk 00:05:35]}
{[%emt 00:00:51]} Qc5 {[%clk 00:06:59]} {[%emt 00:00:19]} 24. Nd6 {[%clk
00:04:27]} {[%emt 00:01:10]} Re1+ {[%clk 00:03:56]} {[%emt 00:03:07]} 25. Kf2
{[%clk 00:04:29]} Re2+ {[%clk 00:03:58]} 26. Kxe2 {[%clk 00:03:42]} {[%emt
00:00:50]} Qxd4 {[%clk 00:03:56]} {[%emt 00:00:05]} 27. cxd4 {[%clk 00:03:26]}
{[%emt 00:00:18]} Nf4+ {[%clk 00:03:59]} {[%emt 00:00:01]} 28. Ke3 {[%clk
00:03:03]} {[%emt 00:00:26]} Nxh3 {[%clk 00:04:01]} {[%emt 00:00:01]} 29. Nxh3
{[%clk 00:03:00]} {[%emt 00:00:05]} 1-0

[Event "Rapide Futuroscope"]
[Site "Futuroscope, France"]
[Date "2019.12.01"]
[Round "7.2"]
[White "Sochacki, Christophe"]
[Black "Navrotescu, Andreea-Cristiana"]
[Result "1-0"]
[TimeControl "15' + 3''"]
[WhiteElo "2484"]
[BlackElo "2241"]

1. Nf3 {[%clk 00:15:05]} {[%emt 00:00:01]} c5 {[%clk 00:15:05]} {[%emt
00:00:03]} 2. b3 {[%clk 00:15:03]} {[%emt 00:00:03]} Nc6 {[%clk 00:15:07]}
{[%emt 00:00:03]} 3. Bb2 {[%clk 00:15:04]} d6 {[%clk 00:15:09]} {[%emt
00:00:01]} 4. e3 {[%clk 00:14:25]} {[%emt 00:00:42]} e5 {[%clk 00:15:10]}
{[%emt 00:00:02]} 5. d4 {[%clk 00:14:27]} {[%emt 00:00:07]} cxd4 {[%clk
00:14:13]} {[%emt 00:00:54]} 6. exd4 {[%clk 00:14:27]} {[%emt 00:00:02]} e4
{[%clk 00:13:50]} {[%emt 00:00:27]} 7. Nfd2 {[%clk 00:14:29]} {[%emt 00:00:01]}
Nf6 {[%clk 00:13:46]} {[%emt 00:00:07]} 8. c4 {[%clk 00:14:10]} {[%emt
00:00:21]} Qe7 {[%clk 00:12:20]} {[%emt 00:01:29]} 9. Be2 {[%clk 00:13:25]}
{[%emt 00:00:48]} e3 {[%clk 00:12:11]} {[%emt 00:00:13]} 10. fxe3 {[%clk
00:13:24]} {[%emt 00:00:04]} Qxe3 {[%clk 00:12:12]} {[%emt 00:00:01]} 11. Nf1
{[%clk 00:12:23]} {[%emt 00:01:04]} Qe7 {[%clk 00:11:11]} {[%emt 00:01:04]} 12.
Nc3 {[%clk 00:11:23]} {[%emt 00:01:03]} Bg4 {[%clk 00:10:28]} {[%emt 00:00:47]}
13. d5 {[%clk 00:08:10]} {[%emt 00:03:16]} Ne5 {[%clk 00:09:34]} {[%emt
00:00:57]} 14. Ne3 {[%clk 00:08:09]} {[%emt 00:00:04]} Ng6 {[%clk 00:05:58]}
{[%emt 00:03:39]} 15. Qd4 {[%clk 00:07:18]} {[%emt 00:00:54]} Bxe2 {[%clk
00:04:44]} {[%emt 00:01:18]} 16. Nxe2 {[%clk 00:07:19]} {[%emt 00:00:02]} Qe4
{[%clk 00:04:42]} {[%emt 00:00:04]} 17. O-O {[%clk 00:07:04]} {[%emt 00:00:18]}
Qxd4 {[%clk 00:04:20]} {[%emt 00:00:25]} 18. Nxd4 {[%clk 00:07:05]} {[%emt
00:00:02]} Ne5 {[%clk 00:04:04]} {[%emt 00:00:19]} 19. Rad1 {[%clk 00:05:01]}
{[%emt 00:02:07]} O-O-O {[%clk 00:03:49]} {[%emt 00:00:18]} 20. c5 {[%clk
00:04:23]} {[%emt 00:00:41]} dxc5 {[%clk 00:03:44]} {[%emt 00:00:09]} 21. Nb5
{[%clk 00:04:25]} a6 {[%clk 00:03:05]} {[%emt 00:00:42]} 22. Bxe5 {[%clk
00:02:46]} {[%emt 00:01:42]} axb5 {[%clk 00:03:07]} {[%emt 00:00:01]} 23. a4
{[%clk 00:02:34]} {[%emt 00:00:15]} bxa4 {[%clk 00:02:55]} {[%emt 00:00:16]} 24.
bxa4 {[%clk 00:02:15]} {[%emt 00:00:23]} Bd6 {[%clk 00:02:53]} {[%emt
00:00:04]} 25. Bxf6 {[%clk 00:01:52]} {[%emt 00:00:26]} gxf6 {[%clk 00:02:55]}
{[%emt 00:00:01]} 26. Rxf6 {[%clk 00:01:53]} {[%emt 00:00:01]} Be5 {[%clk
00:02:56]} {[%emt 00:00:02]} 27. Rf3 {[%clk 00:01:41]} {[%emt 00:00:15]} Bd4
{[%clk 00:02:54]} {[%emt 00:00:05]} 28. Kf1 {[%clk 00:01:43]} Rhe8 {[%clk
00:01:43]} {[%emt 00:01:14]} 29. Nc4 {[%clk 00:01:41]} {[%emt 00:00:05]} f6
{[%clk 00:01:43]} {[%emt 00:00:04]} 30. d6 {[%clk 00:01:27]} {[%emt 00:00:17]}
Kd7 {[%clk 00:01:36]} {[%emt 00:00:10]} 31. Rb3 {[%clk 00:01:26]} {[%emt
00:00:03]} Kc6 {[%clk 00:01:37]} {[%emt 00:00:02]} 32. Rc1 {[%emt 00:00:23]}
Re4 {[%clk 00:01:33]} {[%emt 00:00:07]} 33. Rb6+ {[%clk 00:00:44]} {[%emt
00:00:26]} Kd5 {[%clk 00:01:35]} {[%emt 00:00:01]} 34. Rxb7 {[%clk 00:00:46]}
{[%emt 00:00:01]} Rf4+ {[%clk 00:01:24]} {[%emt 00:00:13]} 35. Ke2 {[%clk
00:00:43]} {[%emt 00:00:05]} Rf2+ {[%clk 00:00:57]} {[%emt 00:00:30]} 36. Kd3
{[%clk 00:00:46]} Rxg2 {[%clk 00:00:59]} {[%emt 00:00:01]} 37. Rf1 {[%clk
00:00:27]} {[%emt 00:00:21]} Rxh2 {[%clk 00:00:49]} {[%emt 00:00:14]} 38. Rf5+
{[%clk 00:00:29]} Ke6 {[%clk 00:00:37]} {[%emt 00:00:15]} 39. Rf3 {[%clk
00:00:32]} Rh5 {[%clk 00:00:25]} {[%emt 00:00:16]} 40. a5 {[%clk 00:00:30]}
{[%emt 00:00:05]} Kd5 {[%clk 00:00:11]} {[%emt 00:00:17]} 41. a6 {[%clk
00:00:30]} {[%emt 00:00:03]} Kc6 {[%clk 00:00:09]} {[%emt 00:00:03]} 42. Rc7+
{[%clk 00:00:21]} {[%emt 00:00:13]} Kb5 {[%clk 00:00:08]} {[%emt 00:00:05]} 43.
a7 {[%clk 00:00:23]} {[%emt 00:00:01]} Ra8 {[%clk 00:00:06]} {[%emt 00:00:04]}
44. d7 {[%clk 00:00:17]} {[%emt 00:00:09]} Rd5 {[%clk 00:00:06]} {[%emt
00:00:03]} 45. Rb7+ {[%clk 00:00:14]} {[%emt 00:00:06]} Kc6 {[%clk 00:00:07]}
{[%emt 00:00:02]} 46. Rb8 {[%clk 00:00:15]} {[%emt 00:00:01]} Rxa7 {[%clk
00:00:05]} {[%emt 00:00:06]} 47. d8=Q {[%clk 00:00:14]} {[%emt 00:00:03]} Rxd8
48. Rxd8 {[%clk 00:00:16]} Ra1 {[%clk 00:00:08]} {[%emt 00:00:03]} 49. Rd6+
{[%clk 00:00:15]} {[%emt 00:00:04]} Kc7 {[%clk 00:00:10]} 50. Rh3 {[%clk
00:00:13]} {[%emt 00:00:04]} Rd1+ {[%clk 00:00:10]} {[%emt 00:00:03]} 51. Ke4
{[%clk 00:00:14]} {[%emt 00:00:02]} Rc1 {[%clk 00:00:07]} {[%emt 00:00:07]} 52.
Rxh7+ {[%clk 00:00:15]} {[%emt 00:00:02]} Kc8 {[%clk 00:00:10]} 53. Nb6+ {[%clk
00:00:16]} {[%emt 00:00:02]} 1-0

[Event "Rapide Futuroscope"]
[Site "Futuroscope, France"]
[Date "2019.12.01"]
[Round "7.3"]
[White "Gaborit, Jean-Pierre"]
[Black "Lagarde, Maxime"]
[Result "0-1"]
[TimeControl "15' + 3''"]
[WhiteElo "2188"]
[BlackElo "2657"]

1. d4 {[%clk 00:15:05]} {[%emt 00:02:44]} f5 {[%clk 00:15:05]} {[%emt
00:00:02]} 2. Nc3 {[%clk 00:15:04]} {[%emt 00:00:04]} Nf6 {[%clk 00:15:05]}
{[%emt 00:00:03]} 3. Bg5 {[%clk 00:15:05]} {[%emt 00:00:03]} d5 {[%clk
00:15:07]} 4. Bxf6 {[%clk 00:15:02]} {[%emt 00:00:06]} exf6 {[%clk 00:15:07]}
{[%emt 00:00:03]} 5. e3 {[%clk 00:15:02]} {[%emt 00:00:03]} Be6 {[%clk
00:15:05]} {[%emt 00:00:03]} 6. h4 {[%clk 00:14:14]} {[%emt 00:00:51]} Qd7
{[%clk 00:14:48]} {[%emt 00:00:20]} 7. Bd3 {[%clk 00:13:26]} {[%emt 00:00:51]}
Nc6 {[%clk 00:14:45]} {[%emt 00:00:06]} 8. a3 {[%clk 00:13:23]} {[%emt
00:00:06]} a6 {[%clk 00:14:16]} {[%emt 00:00:33]} 9. Nh3 {[%clk 00:12:39]}
{[%emt 00:00:47]} Bd6 {[%clk 00:14:06]} {[%emt 00:00:13]} 10. g3 {[%clk
00:10:48]} {[%emt 00:01:54]} Ne7 {[%clk 00:13:51]} {[%emt 00:00:18]} 11. Nf4
{[%clk 00:10:43]} {[%emt 00:00:08]} Bf7 {[%clk 00:13:51]} {[%emt 00:00:03]} 12.
Qd2 {[%clk 00:09:07]} {[%emt 00:01:39]} O-O {[%clk 00:12:19]} {[%emt 00:01:34]}
13. Kf1 {[%clk 00:08:47]} {[%emt 00:00:23]} b5 {[%clk 00:11:27]} {[%emt
00:00:56]} 14. Kg2 {[%clk 00:08:37]} {[%emt 00:00:13]} c6 {[%clk 00:11:29]} 15.
Nce2 {[%clk 00:08:18]} {[%emt 00:00:22]} Nc8 {[%clk 00:10:32]} {[%emt
00:01:00]} 16. h5 {[%clk 00:06:49]} {[%emt 00:01:31]} Bc7 {[%clk 00:10:21]}
{[%emt 00:00:14]} 17. a4 {[%clk 00:06:39]} {[%emt 00:00:14]} Nd6 {[%clk
00:10:20]} {[%emt 00:00:04]} 18. c3 {[%clk 00:05:53]} {[%emt 00:00:49]} g5
{[%clk 00:08:48]} {[%emt 00:01:35]} 19. hxg6 {[%clk 00:05:50]} {[%emt
00:00:05]} hxg6 {[%clk 00:08:50]} {[%emt 00:00:02]} 20. Nc1 {[%clk 00:05:22]}
{[%emt 00:00:31]} Ne4 {[%clk 00:08:23]} {[%emt 00:00:30]} 21. Qe2 {[%clk
00:04:43]} {[%emt 00:00:41]} Kg7 {[%clk 00:07:57]} {[%emt 00:00:29]} 22. Nb3
{[%clk 00:04:45]} Bd6 {[%clk 00:07:00]} {[%emt 00:01:00]} 23. Bxe4 {[%clk
00:04:39]} {[%emt 00:00:09]} fxe4 {[%clk 00:05:56]} {[%emt 00:01:06]} 24. Nc5
{[%clk 00:03:53]} {[%emt 00:00:49]} Bxc5 {[%clk 00:05:57]} {[%emt 00:00:03]} 25.
dxc5 {[%clk 00:03:55]} Rh8 {[%clk 00:05:54]} {[%emt 00:00:06]} 26. Rxh8 {[%clk
00:03:15]} {[%emt 00:00:43]} Rxh8 {[%clk 00:05:49]} {[%emt 00:00:08]} 27. Rh1
{[%clk 00:03:06]} {[%emt 00:00:12]} Rxh1 {[%clk 00:04:51]} {[%emt 00:01:01]} 28.
Kxh1 {[%clk 00:03:08]} g5 {[%clk 00:04:10]} {[%emt 00:00:45]} 29. Ng2 {[%clk
00:03:08]} {[%emt 00:00:03]} Qh3+ {[%clk 00:04:05]} {[%emt 00:00:08]} 30. Kg1
{[%clk 00:03:10]} {[%emt 00:00:01]} Bh5 {[%clk 00:04:06]} {[%emt 00:00:02]} 0-1